fUSD/lending_fUSD_20260511
["ID","MTS","AMOUNT","RATE_DAILY","PERIOD"]
[422009092,1778454632000,-171.0,0.00022,2]
[422009136,1778454632000,-3252.48,0.00022986,2]
[422009077,1778454632000,-500.0,0.00021897,2]
[422009161,1778454633000,-308.0,0.000241,2]
[422009173,1778454633000,-5000.0,0.00024255,2]
[422009159,1778454633000,-314.0,0.000241,2]
[422009169,1778454633000,-544.39,0.00024174,2]
[422009171,1778454633000,-524.11,0.00024174,2]
[422009157,1778454633000,-175.9,0.00024067,2]
[422009155,1778454633000,-613.0,0.00024,2]
[422009138,1778454633000,-1023.2,0.00022986,2]
[422009147,1778454633000,-166.92,0.00023388,2]
[422009151,1778454633000,-185.84,0.00023831,2]
[422009145,1778454633000,-993.22,0.00023145,2]
[422009143,1778454633000,-613.0,0.00023,2]
[422009141,1778454633000,-171.0,0.00023,2]
[422009153,1778454633000,-171.0,0.00024,2]
[422009165,1778454633000,-308.47,0.0002411,2]
[422009149,1778454633000,-1023.2,0.00023561,2]
[422009163,1778454633000,-1000.0,0.000241,2]
[422009167,1778454633000,-1023.2,0.00024135,2]
[422009178,1778454633000,-1000.0,0.00024658,2]
[422009175,1778454633000,-505.0,0.00024397,2]
[422009211,1778454633000,-562.95218,0.00025,2]
[422009207,1778454633000,-169.3128186,0.00025,2]
[422009203,1778454633000,-1806.96999686,0.00025,2]
[422009200,1778454633000,-985.65180182,0.00025,2]
[422009198,1778454633000,-713.63554409,0.00025,2]
[422009196,1778454633000,-269.46,0.00024946,30]
[422009194,1778454633000,-153.68,0.00024931,7]
[422009205,1778454633000,-2226.65218536,0.00025,2]
[422009209,1778454633000,-1338.8251159,0.00025,2]
[422009186,1778454633000,-166.92,0.00024675,2]
[422009189,1778454633000,-269.46,0.00024802,7]
[422009188,1778454633000,-1023.2,0.0002471,2]
[422009184,1778454633000,-269.46,0.00024658,2]
[422009182,1778454633000,-153.68,0.00024658,2]
[422009191,1778454633000,-2000.0,0.00024881,2]
[422009180,1778454633000,-186.37,0.00024658,2]
[422009278,1778454638000,-269.46,0.00025378,30]
[422009271,1778454638000,-926.0,0.00025171,2]
[422009260,1778454638000,-150.82697064,0.00025,2]
[422009272,1778454638000,-1269.0,0.00025171,2]
[422009257,1778454638000,-284.14433268,0.00021942,2]
[422009264,1778454638000,-151.0,0.00025,2]
[422009270,1778454638000,-624.0,0.00025171,2]
[422009279,1778454638000,-153.68,0.00025479,2]
[422009266,1778454638000,-150.0,0.00025171,2]
[422009276,1778454638000,-269.46,0.00025234,7]
[422009277,1778454638000,-1023.2,0.00025285,2]
[422009259,1778454638000,-2946.15275595,0.00025,2]
[422009258,1778454638000,-4715.85566732,0.00021942,2]
[422009268,1778454638000,-150.0,0.00025171,2]
[422009273,1778454638000,-1222.0,0.00025171,2]
[422009265,1778454638000,-269.46,0.0002509,2]
[422009269,1778454638000,-150.0,0.00025171,2]
[422009275,1778454638000,-153.68,0.00025205,30]
[422009280,1778454638000,-9345.35721591,0.000255,2]
[422009267,1778454638000,-150.0,0.00025171,2]
[422009282,1778454638000,-329.4706991,0.000255,2]
[422009263,1778454638000,-622.00624042,0.00025,2]
[422009281,1778454638000,-1043.35,0.000255,2]
[422009262,1778454638000,-175.0,0.00025,2]
[422009274,1778454638000,-1028.19942176,0.00025176,2]
[422009261,1778454638000,-150.0,0.00025,2]
[422009283,1778454638000,-5090.88593671,0.000255,2]
[422009299,1778454640000,-476.46396374,0.000255,2]
[422009300,1778454641000,-266.0,0.000255,2]
[422009301,1778454641000,-414.751446,0.000255,2]
[422009303,1778454641000,-1440.18493656,0.000255,2]
[422009372,1778454643000,-161.0,0.00026392,7]
[422009371,1778454643000,-269.46,0.00026388,2]
[422009353,1778454643000,-179.64,0.00026084,30]
[422009358,1778454643000,-179.64,0.00026142,7]
[422009339,1778454643000,-269.46,0.00025667,7]
[422009338,1778454643000,-504.64121284,0.00025657,2]
[422009382,1778454643000,-153.68,0.00026575,7]
[422009374,1778454643000,-179.64,0.00026431,30]
[422009381,1778454643000,-161.04,0.00026575,2]
[422009351,1778454643000,-153.68,0.00026027,30]
[422009350,1778454643000,-161.0,0.00026027,2]
[422009333,1778454643000,-3628.0,0.00025171,2]
[422009385,1778454643000,-269.46,0.00026676,30]
[422009369,1778454643000,-179.64,0.00026344,30]
[422009363,1778454643000,-269.46,0.00026243,30]
[422009346,1778454643000,-269.46,0.00025955,2]
[422009337,1778454643000,-269.46,0.00025523,2]
[422009362,1778454643000,-179.64,0.00026229,7]
[422009343,1778454643000,-269.46,0.00025811,30]
[422009332,1778454643000,-3628.0,0.00022171,2]
[422009378,1778454643000,-179.64,0.00026517,30]
[422009368,1778454643000,-179.64,0.00026315,7]
[422009364,1778454643000,-179.64,0.00026257,30]
[422009352,1778454643000,-179.64,0.00026055,7]
[422009376,1778454643000,-161.0,0.00026483,30]
[422009335,1778454643000,-24178.66924123,0.000255,2]
[422009348,1778454643000,-34348.92623246,0.00025999,2]
[422009361,1778454643000,-161.0,0.00026209,30]
[422009341,1778454643000,-544.39,0.00025786,2]
[422009377,1778454643000,-179.64,0.00026488,7]
[422009365,1778454643000,-179.64,0.00026286,2]
[422009349,1778454643000,-179.64,0.00026027,2]
[422009340,1778454643000,-153.68,0.00025753,7]
[422009336,1778454643000,-151.5357274,0.000255,2]
[422009334,1778454643000,-11175.64755268,0.000255,2]
[422009342,1778454643000,-524.11,0.00025786,2]
[422009380,1778454643000,-179.64,0.00026546,2]
[422009375,1778454643000,-179.64,0.00026459,2]
[422009356,1778454643000,-161.0,0.00026118,7]
[422009355,1778454643000,-179.64,0.00026113,2]
[422009367,1778454643000,-153.68,0.00026301,2]
[422009359,1778454643000,-179.64,0.00026171,30]
[422009383,1778454643000,-179.71,0.00026575,7]
[422009373,1778454643000,-179.64,0.00026402,7]
[422009366,1778454643000,-161.0,0.00026301,2]
[422009379,1778454643000,-269.46,0.00026532,7]
[422009360,1778454643000,-179.64,0.000262,2]
[422009354,1778454643000,-269.46,0.00026099,7]
[422009357,1778454643000,-505.0,0.00026135,3]
[422009347,1778454643000,-166.92,0.00025962,2]
[422009344,1778454643000,-493.0,0.0002583,10]
[422009345,1778454643000,-278.0,0.0002583,10]
[422009370,1778454643000,-179.64,0.00026373,2]
[422009423,1778454644000,-212.91,0.00028,2]
[422009391,1778454644000,-150.0,0.00026849,2]
[422009390,1778454644000,-153.68,0.00026849,30]
[422009506,1778454644000,-150.0,0.00036,7]
[422009404,1778454644000,-269.46,0.00027253,2]
[422009496,1778454644000,-1500.0,0.000352,7]
[422009493,1778454644000,-379.20301133,0.00034863,3]
[422009463,1778454644000,-151.0,0.00031507,30]
[422009452,1778454644000,-166.7242559,0.00030507,30]
[422009438,1778454644000,-150.0,0.00029601,2]
[422009498,1778454644000,-171.0,0.00035507,30]
[422009430,1778454644000,-1222.0,0.00028171,2]
[422009406,1778454644000,-8225.153718,0.0002739,2]
[422009471,1778454644000,-171.0,0.00032507,30]
[422009412,1778454644000,-7243.88,0.00027397,10]
[422009422,1778454644000,-28214.51288373,0.00028,2]
[422009426,1778454644000,-150.0,0.00028171,2]
[422009431,1778454644000,-3628.0,0.00028171,2]
[422009435,1778454644000,-823.3729256,0.00028348,2]
[422009456,1778454644000,-1028.19942176,0.00031066,2]
[422009461,1778454644000,-505.0,0.00031348,9]
[422009467,1778454644000,-183.7193327,0.00031526,2]
[422009499,1778454644000,-613.0,0.00035508,30]
[422009395,1778454644000,-250.0,0.00027,2]
[422009400,1778454644000,-2545.58226,0.0002701,2]
[422009413,1778454644000,-9955.67,0.00027397,10]
[422009449,1778454644000,-200.0,0.00030137,2]
[422009483,1778454644000,-613.0,0.00033508,30]
[422009508,1778454644000,-150.0,0.00036,7]
[422009470,1778454644000,-154.0,0.00032507,30]
[422009417,1778454644000,-2000.0,0.00027646,2]
[422009405,1778454644000,-4163.50697488,0.0002739,2]
[422009453,1778454644000,-171.0,0.00030507,30]
[422009482,1778454644000,-171.0,0.00033507,30]
[422009497,1778454644000,-152.0,0.0003526,3]
[422009503,1778454644000,-150.0,0.00036,7]
[422009415,1778454644000,-1268.02,0.00027397,7]
[422009416,1778454644000,-203.87371813,0.000275,2]
[422009432,1778454644000,-150.0,0.00028192,2]
[422009440,1778454644000,-155.07267281,0.000299,30]
[422009448,1778454644000,-104504.54213284,0.0003013,7]
[422009464,1778454644000,-171.0,0.00031507,30]
[422009479,1778454644000,-505.0,0.00033085,11]
[422009468,1778454644000,-502.17,0.00031801,2]
[422009495,1778454644000,-175.9,0.00035163,120]
[422009505,1778454644000,-150.0,0.00036,7]
[422009397,1778454644000,-2000.0,0.00027,14]
[422009418,1778454644000,-500.0,0.000278,7]
[422009450,1778454644000,-2000.0,0.00030411,2]
[422009459,1778454644000,-5530.0,0.000311,5]
[422009475,1778454644000,-4979.09983931,0.000329,120]
[422009480,1778454644000,-2000.0,0.00033175,2]
[422009501,1778454644000,-186.37,0.00035616,2]
[422009500,1778454644000,-180.15,0.00035535,2]
[422009427,1778454644000,-624.0,0.00028171,2]
[422009429,1778454644000,-744.001,0.00028171,2]
[422009481,1778454644000,-490.93997533,0.000335,2]
[422009425,1778454644000,-1028.19942176,0.00028121,2]
[422009466,1778454644000,-161.0,0.00031508,30]
[422009455,1778454644000,-157.0,0.00030508,30]
[422009394,1778454644000,-2000.0,0.00027,2]
[422009434,1778454644000,-129511.9142957,0.00028338,2]
[422009433,1778454644000,-500.0,0.00028337,120]
[422009478,1778454644000,-163.0,0.00033,14]
[422009491,1778454644000,-505.0,0.00034823,12]
[422009411,1778454644000,-300.0,0.00027397,2]
[422009451,1778454644000,-151.0,0.00030507,30]
[422009474,1778454644000,-1066.0,0.00032877,2]
[422009472,1778454644000,-613.0,0.00032508,30]
[422009399,1778454644000,-530.0,0.00027,2]
[422009408,1778454644000,-153.78,0.00027397,7]
[422009442,1778454644000,-458.41868389,0.00029999,2]
[422009457,1778454644000,-150.0,0.00031081,2]
[422009462,1778454644000,-1000.0,0.000315,7]
[422009509,1778454644000,-153.02767602,0.00036377,2]
[422009477,1778454644000,-570.807798,0.00033,14]
[422009488,1778454644000,-3628.0,0.00034171,2]
[422009402,1778454644000,-153.68,0.00027123,2]
[422009393,1778454644000,-269.46,0.00026964,7]
[422009409,1778454644000,-269.58,0.00027397,7]
[422009414,1778454644000,-8296.39,0.00027397,10]
[422009444,1778454644000,-258.4316693,0.00029999,2]
[422009473,1778454644000,-150.0,0.00032636,2]
[422009494,1778454644000,-231.5748294,0.00034882,13]
[422009507,1778454644000,-150.0,0.00036,7]
[422009437,1778454644000,-153.02767602,0.00029569,2]
[422009465,1778454644000,-613.0,0.00031508,30]
[422009458,1778454644000,-305.07,0.00031096,2]
[422009443,1778454644000,-426.46519546,0.00029999,2]
[422009420,1778454644000,-505.0,0.00027872,5]
[422009446,1778454644000,-500.0,0.0003,2]
[422009484,1778454644000,-2129.286,0.00033632,36]
[422009387,1778454644000,-269.46,0.0002682,2]
[422009398,1778454644000,-1047.57155987,0.00027,2]
[422009407,1778454644000,-336.0,0.00027397,5]
[422009428,1778454644000,-348.595,0.00028171,2]
[422009441,1778454644000,-226.49623679,0.00029999,2]
[422009460,1778454644000,-3628.0,0.00031171,2]
[422009476,1778454644000,-168.28,0.00032936,2]
[422009486,1778454644000,-1028.19942176,0.0003401,2]
[422009487,1778454644000,-153.02767602,0.00034108,2]
[422009492,1778454644000,-379.20301133,0.00034863,3]
[422009502,1778454644000,-11817.94022245,0.00036,2]
[422009447,1778454644000,-643.15357132,0.0003013,2]
[422009504,1778454644000,-150.0,0.00036,7]
[422009424,1778454644000,-196.0,0.00028113,10]
[422009454,1778454644000,-613.0,0.00030508,30]
[422009410,1778454644000,-1000.0,0.00027397,20]
[422009403,1778454644000,-166.92,0.00027249,2]
[422009485,1778454644000,-194.257,0.00033632,36]
[422009439,1778454644000,-505.0,0.0002961,7]
[422009469,1778454644000,-153.02767602,0.00031839,2]
[422009401,1778454644000,-269.46,0.00027108,30]
[422009490,1778454644000,-613.0,0.00034508,30]
[422009489,1778454644000,-171.0,0.00034507,30]
[422009445,1778454644000,-795.665336,0.0003,2]
[422009436,1778454644000,-1473.42733197,0.00029372,21]
[422009536,1778454645000,-301.4896953,0.00036899,2]
[422009580,1778454645000,-200.78588445,0.00038356,2]
[422009574,1778454645000,-505.0,0.00038298,16]
[422009551,1778454645000,-603.85506578,0.00036936,2]
[422009524,1778454645000,-483.59861358,0.00036899,2]
[422009582,1778454645000,-272.0,0.00038376,2]
[422009617,1778454645000,-261.0,0.000392,30]
[422009608,1778454645000,-200.0,0.00039075,2]
[422009607,1778454645000,-200.0,0.00039075,2]
[422009589,1778454645000,-150.0,0.00038667,7]
[422009606,1778454645000,-200.0,0.00039075,2]
[422009511,1778454645000,-1280.93,0.0003645,10]
[422009613,1778454645000,-150.0,0.00039111,7]
[422009560,1778454645000,-250.0,0.00037171,30]
[422009520,1778454645000,-310.58625824,0.00036899,2]
[422009543,1778454645000,-463.38560569,0.00036936,2]
[422009583,1778454645000,-4836.2452,0.00038488,2]
[422009587,1778454645000,-5253.4847,0.00038625,2]
[422009596,1778454645000,-243.0,0.00038898,120]
[422009614,1778454645000,-4836.2452,0.00039173,2]
[422009622,1778454645000,-898.3182,0.0003931,2]
[422009513,1778454645000,-613.0,0.00036508,30]
[422009545,1778454645000,-451.46014752,0.00036936,2]
[422009549,1778454645000,-1093.63973599,0.00036936,2]
[422009552,1778454645000,-660.86433468,0.00036936,2]
[422009601,1778454645000,-28898.0141779,0.00038929,2]
[422009578,1778454645000,-500.0,0.00038356,60]
[422009521,1778454645000,-463.38560569,0.00036899,2]
[422009565,1778454645000,-8930.2736672,0.00037247,2]
[422009558,1778454645000,-1028.19942176,0.00036955,2]
[422009535,1778454645000,-399.47373702,0.00036899,2]
[422009539,1778454645000,-1146.02256466,0.00036936,2]
[422009602,1778454645000,-4836.2452,0.00039036,2]
[422009572,1778454645000,-151.0,0.00038125,30]
[422009514,1778454645000,-505.0,0.0003656,14]
[422009534,1778454645000,-725.34798474,0.00036899,2]
[422009566,1778454645000,-150.0,0.00037333,7]
[422009575,1778454645000,-898.3182,0.00038351,2]
[422009591,1778454645000,-4836.2452,0.00038762,2]
[422009593,1778454645000,-4678.80642267,0.00038799,2]
[422009598,1778454645000,-5253.4847,0.00038899,2]
[422009625,1778454645000,-1000.0,0.00039324,90]
[422009518,1778454645000,-309.2779459,0.00036899,2]
[422009531,1778454645000,-603.85506578,0.00036899,2]
[422009533,1778454645000,-892.50225283,0.00036899,2]
[422009557,1778454645000,-598.10714269,0.00036936,2]
[422009586,1778454645000,-4836.2452,0.00038625,2]
[422009597,1778454645000,-4836.2452,0.00038899,2]
[422009623,1778454645000,-4836.2452,0.0003931,2]
[422009517,1778454645000,-1146.02256466,0.00036899,2]
[422009527,1778454645000,-1093.63973599,0.00036899,2]
[422009544,1778454645000,-576.59432604,0.00036936,2]
[422009559,1778454645000,-8702.15675816,0.00037,2]
[422009548,1778454645000,-590.67564567,0.00036936,2]
[422009577,1778454645000,-5253.4847,0.00038351,2]
[422009603,1778454645000,-5253.4847,0.00039036,2]
[422009605,1778454645000,-200.0,0.00039075,2]
[422009628,1778454645000,-1000.0,0.00039444,90]
[422009550,1778454645000,-656.73130099,0.00036936,2]
[422009604,1778454645000,-200.0,0.00039075,2]
[422009532,1778454645000,-713.02777268,0.00036899,2]
[422009627,1778454645000,-1000.0,0.00039423,90]
[422009568,1778454645000,-201.965791,0.000379,15]
[422009592,1778454645000,-5253.4847,0.00038762,2]
[422009626,1778454645000,-1000.0,0.00039411,90]
[422009516,1778454645000,-150.0,0.00036889,7]
[422009538,1778454645000,-250.0,0.00036913,7]
[422009540,1778454645000,-412.62486912,0.00036936,2]
[422009554,1778454645000,-725.34798474,0.00036936,2]
[422009573,1778454645000,-150.0,0.00038222,7]
[422009564,1778454645000,-19244.98690464,0.000372,120]
[422009579,1778454645000,-500.0,0.00038356,60]
[422009581,1778454645000,-822.59,0.00038356,120]
[422009600,1778454645000,-184.60776791,0.000389,30]
[422009620,1778454645000,-164.31,0.000393,30]
[422009523,1778454645000,-306.37486008,0.00036899,2]
[422009525,1778454645000,-412.93316496,0.00036899,2]
[422009542,1778454645000,-310.58625824,0.00036936,2]
[422009555,1778454645000,-402.21429433,0.00036936,2]
[422009570,1778454645000,-150.0,0.00038,7]
[422009585,1778454645000,-29602.24,0.000385,7]
[422009609,1778454645000,-200.0,0.00039075,2]
[422009512,1778454645000,-171.0,0.00036507,30]
[422009515,1778454645000,-1022.29,0.00036569,10]
[422009522,1778454645000,-451.46014752,0.00036899,2]
[422009562,1778454645000,-19244.98690464,0.000372,120]
[422009590,1778454645000,-1855.77931672,0.0003874,2]
[422009630,1778454645000,-4836.2452,0.00039447,2]
[422009615,1778454645000,-5253.4847,0.00039173,2]
[422009567,1778454645000,-150.0,0.00037778,7]
[422009529,1778454645000,-300.0,0.00036899,2]
[422009547,1778454645000,-309.51866284,0.00036936,2]
[422009616,1778454645000,-500.0,0.00039178,60]
[422009631,1778454645000,-5253.4847,0.00039447,2]
[422009618,1778454645000,-816.59,0.00039243,120]
[422009510,1778454645000,-150.0,0.00036444,7]
[422009588,1778454645000,-153.02767602,0.00038647,2]
[422009595,1778454645000,-150.0,0.00038898,120]
[422009599,1778454645000,-2000.0,0.000389,7]
[422009610,1778454645000,-200.0,0.00039075,2]
[422009621,1778454645000,-1000.0,0.00039306,90]
[422009519,1778454645000,-863.58946345,0.00036899,2]
[422009528,1778454645000,-301.24498047,0.00036899,2]
[422009530,1778454645000,-492.19455268,0.00036899,2]
[422009561,1778454645000,-19244.98690465,0.000372,120]
[422009571,1778454645000,-150.0,0.00038,7]
[422009594,1778454645000,-500.0,0.00038898,120]
[422009569,1778454645000,-2500.0,0.00038,5]
[422009526,1778454645000,-300.0,0.00036899,2]
[422009633,1778454645000,-1969.17257945,0.00039452,5]
[422009612,1778454645000,-1924.25385454,0.00039078,14]
[422009584,1778454645000,-5253.4847,0.00038488,2]
[422009576,1778454645000,-4836.2452,0.00038351,2]
[422009553,1778454645000,-892.50225283,0.00036936,2]
[422009541,1778454645000,-863.58946345,0.00036936,2]
[422009611,1778454645000,-174.0,0.00039075,2]
[422009624,1778454645000,-5253.4847,0.0003931,2]
[422009619,1778454645000,-152.0,0.00039275,4]
[422009563,1778454645000,-19244.98690464,0.000372,120]
[422009556,1778454645000,-521.10879165,0.00036936,2]
[422009546,1778454645000,-483.59861358,0.00036936,2]
[422009537,1778454645000,-300.0,0.00036899,2]
[422009711,1778454646000,-383.02,0.00039999,120]
[422009665,1778454646000,-292.0,0.000399,120]
[422009638,1778454646000,-1000.0,0.00039539,90]
[422009646,1778454646000,-1000.0,0.00039616,90]
[422009688,1778454646000,-151.0,0.00039997,14]
[422009696,1778454646000,-500.0,0.00039999,120]
[422009706,1778454646000,-277.77777,0.00039999,120]
[422009649,1778454646000,-277.77778,0.0003965,116]
[422009655,1778454646000,-164.31,0.000398,30]
[422009708,1778454646000,-277.77778,0.00039999,120]
[422009680,1778454646000,-221.70701788,0.0003999,7]
[422009690,1778454646000,-666.0,0.00039999,30]
[422009707,1778454646000,-277.77778,0.00039999,120]
[422009639,1778454646000,-1000.0,0.00039545,90]
[422009653,1778454646000,-5253.4847,0.00039721,2]
[422009698,1778454646000,-500.0,0.00039999,120]
[422009712,1778454646000,-383.02,0.00039999,120]
[422009702,1778454646000,-500.0,0.00039999,120]
[422009691,1778454646000,-300.0,0.00039999,10]
[422009694,1778454646000,-300.0,0.00039999,7]
[422009705,1778454646000,-500.0,0.00039999,120]
[422009700,1778454646000,-500.0,0.00039999,120]
[422009650,1778454646000,-1000.0,0.00039708,90]
[422009685,1778454646000,-5253.4847,0.00039995,2]
[422009664,1778454646000,-200.0,0.000399,120]
[422009679,1778454646000,-1000.0,0.0003999,90]
[422009641,1778454646000,-4836.2452,0.00039584,2]
[422009676,1778454646000,-197.28556817,0.00039973,5]
[422009667,1778454646000,-150.0,0.000399,10]
[422009683,1778454646000,-152.0,0.00039995,7]
[422009697,1778454646000,-500.0,0.00039999,120]
[422009695,1778454646000,-153.0,0.00039999,7]
[422009659,1778454646000,-175.55517414,0.000399,2]
[422009660,1778454646000,-3967.27918439,0.000399,2]
[422009677,1778454646000,-1000.0,0.0003998,90]
[422009699,1778454646000,-500.0,0.00039999,120]
[422009704,1778454646000,-500.0,0.00039999,120]
[422009652,1778454646000,-4836.2452,0.00039721,2]
[422009648,1778454646000,-1794.53,0.00039648,2]
[422009658,1778454646000,-5253.4847,0.00039858,2]
[422009687,1778454646000,-151.0,0.00039997,14]
[422009692,1778454646000,-300.0,0.00039999,10]
[422009637,1778454646000,-1000.0,0.00039513,90]
[422009654,1778454646000,-1000.0,0.0003976,90]
[422009656,1778454646000,-4836.2452,0.00039858,2]
[422009669,1778454646000,-1924.25385454,0.000399,15]
[422009709,1778454646000,-277.77778,0.00039999,120]
[422009703,1778454646000,-500.0,0.00039999,120]
[422009634,1778454646000,-631.92949554,0.00039452,5]
[422009686,1778454646000,-151.0,0.00039997,14]
[422009710,1778454646000,-383.02,0.00039999,120]
[422009672,1778454646000,-200.0,0.000399,19]
[422009689,1778454646000,-151.0,0.00039997,14]
[422009668,1778454646000,-1028.19942176,0.000399,15]
[422009642,1778454646000,-5253.4847,0.00039584,2]
[422009720,1778454646000,-500.0,0.0004,60]
[422009722,1778454646000,-406.10680433,0.0004,45]
[422009723,1778454646000,-3628.0,0.00037171,2]
[422009726,1778454646000,-3000.0,0.0004,30]
[422009727,1778454646000,-114475.710072,0.0004,120]
[422009640,1778454646000,-150.0,0.00039556,7]
[422009728,1778454646000,-477.0,0.0004,21]
[422009724,1778454646000,-400107.48167762,0.0004,45]
[422009729,1778454646000,-1349.34550939,0.0004,120]
[422009736,1778454646000,-1636.65,0.0004,14]
[422009735,1778454646000,-1597.22760122,0.0004,14]
[422009731,1778454646000,-353.04442745,0.0004,120]
[422009732,1778454646000,-105350.75075832,0.0004,120]
[422009730,1778454646000,-351.511,0.0004,120]
[422009734,1778454646000,-194732.85683287,0.0004,120]
[422009733,1778454646000,-506.5494,0.0004,15]
[422009738,1778454646000,-7089.84867777,0.0004,120]
[422009737,1778454646000,-383.953824,0.0004,2]
[422009741,1778454646000,-23818.4188825,0.0004,120]
[422009739,1778454646000,-156615.81805126,0.0004,120]
[422009740,1778454646000,-13791.81463389,0.0004,120]
[422009743,1778454646000,-10000.12345678,0.0004,5]
[422009742,1778454646000,-201.0,0.0004,7]
[422009721,1778454646000,-1122289.39384562,0.0004,45]
[422009715,1778454646000,-383.02,0.00039999,120]
[422009725,1778454646000,-1500.0,0.0004,120]
[422009714,1778454646000,-383.02,0.00039999,120]
[422009644,1778454646000,-29602.24,0.000396,7]
[422009645,1778454646000,-277.77778,0.000396,115]
[422009647,1778454646000,-156.47517627,0.00039644,90]
[422009719,1778454646000,-383.02,0.00039999,120]
[422009673,1778454646000,-154.56289384,0.000399,2]
[422009701,1778454646000,-500.0,0.00039999,120]
[422009661,1778454646000,-152.0,0.000399,30]
[422009675,1778454646000,-1000.0,0.0003995,90]
[422009682,1778454646000,-152.0,0.00039995,7]
[422009684,1778454646000,-4836.2452,0.00039995,2]
[422009693,1778454646000,-666.0,0.00039999,30]
[422009636,1778454646000,-1000.0,0.00039489,90]
[422009651,1778454646000,-350.0,0.00039714,2]
[422009674,1778454646000,-725.5080014,0.000399,2]
[422009666,1778454646000,-172.694545,0.000399,72]
[422009718,1778454646000,-383.02,0.00039999,120]
[422009717,1778454646000,-383.02,0.00039999,120]
[422009713,1778454646000,-383.02,0.00039999,120]
[422009678,1778454646000,-242.51,0.00039988,120]
[422009716,1778454646000,-383.02,0.00039999,120]
[422009635,1778454646000,-1000.0,0.00039458,90]
[422009662,1778454646000,-153.0,0.000399,120]
[422009643,1778454646000,-1000.0,0.00039598,90]
[422009681,1778454646000,-221.70701788,0.0003999,7]
[422009671,1778454646000,-2503.277489,0.000399,31]
[422009753,1778454647000,-151.0,0.0004,30]
[422009754,1778454647000,-151.0,0.0004,30]
[422009761,1778454647000,-260.31400254,0.0004,7]
[422009752,1778454647000,-30000.0,0.0004,2]
[422009759,1778454647000,-151.0,0.0004,28]
[422009758,1778454647000,-151.0,0.0004,28]
[422009760,1778454647000,-151.0,0.0004,28]
[422009745,1778454647000,-6392.25561133,0.0004,120]
[422009750,1778454647000,-1257.45,0.0004,14]
[422009749,1778454647000,-500.0,0.0004,60]
[422009747,1778454647000,-16958.77,0.0004,120]
[422009746,1778454647000,-2002.01425658,0.0004,4]
[422009756,1778454647000,-151.0,0.0004,28]
[422009744,1778454647000,-4590.0,0.0004,120]
[422009748,1778454647000,-22500.0,0.0004,120]
[422009751,1778454647000,-181.84,0.0004,30]
[422009755,1778454647000,-151.0,0.0004,28]
[422009785,1778454647000,-12690.59999985,0.0004,120]
[422009766,1778454647000,-150.0,0.0004,7]
[422009852,1778454647000,-6913.66,0.00028328,10]
[422009853,1778454647000,-99892.73616415,0.0004,120]
[422009782,1778454647000,-156.0,0.00030508,30]
[422009784,1778454647000,-2749.16058919,0.0004,120]
[422009783,1778454647000,-1048.0,0.000399,30]
[422009779,1778454647000,-452.0,0.00036,30]
[422009781,1778454647000,-10453.30230164,0.0004,120]
[422009780,1778454647000,-221.7284,0.0004,120]
[422009778,1778454647000,-376.8448,0.0004,120]
[422009773,1778454647000,-150.0,0.0004,7]
[422009770,1778454647000,-5895.15588001,0.0004,120]
[422009768,1778454647000,-151.08512299,0.0004,7]